bitfinex/quotes_BTCUSD_20250709
["timestamp","ask_amount","ask_price","bid_price","bid_amount"]
[1752077739580,0.22259888,109280.0,109270.0,0.14562]
[1752077739759,0.22259888,109280.0,109270.0,0.32865285]
[1752077740378,0.22259888,109280.0,109270.0,0.14562]
[1752077742300,0.22259888,109280.0,109270.0,0.32865285]
[1752077742505,0.22259888,109280.0,109270.0,0.3378044]
[1752077742729,0.22259888,109280.0,109270.0,0.34695587]
[1752077743436,0.21344816,109280.0,109270.0,0.14566]
[1752077743639,0.20429736,109280.0,109270.0,0.14566]
[1752077744271,0.20429736,109280.0,109270.0,0.22303057]
[1752077748401,0.20429736,109280.0,109270.0,0.21797057]
[1752077748655,0.20429736,109280.0,109270.0,0.07741057]
[1752077748823,0.55639367,109280.0,109270.0,0.14048]
[1752077749320,1.01814691,109280.0,109270.0,0.14048]
[1752077749497,1.19804537,109280.0,109270.0,4e-05]
[1752077752935,0.84606414,109280.0,109270.0,4e-05]
[1752077755849,0.93750107,109280.0,109270.0,4e-05]
[1752077756077,0.84606414,109280.0,109270.0,4e-05]
[1752077759156,0.83962975,109280.0,109270.0,4e-05]
[1752077759576,0.84606183,109280.0,109270.0,4e-05]
[1752077759987,0.49385044,109280.0,109270.0,4e-05]
[1752077760196,0.84606183,109280.0,109270.0,4e-05]
[1752077761839,0.84604778,109280.0,109270.0,4e-05]
[1752077762981,1.18604778,109280.0,109270.0,4e-05]
[1752077763220,0.20505397,109260.0,109250.0,1.8]
[1752077763433,1.17249368,109260.0,109250.0,1.80008511]
[1752077763641,0.82028229,109260.0,109250.0,1.80008511]
[1752077764758,0.4680709,109260.0,109250.0,1.80008511]
[1752077764967,0.82028229,109260.0,109250.0,1.89152204]
[1752077765177,0.82228229,109260.0,109250.0,1.89152204]
[1752077766016,0.82328229,109260.0,109250.0,1.80008511]
[1752077766231,0.82159229,109260.0,109250.0,1.80008511]
[1752077766860,0.3139009,109260.0,109250.0,1.80531511]
[1752077767077,0.3118909,109260.0,109250.0,1.96135511]
[1752077767291,0.2957909,109260.0,109250.0,1.96135511]
[1752077768556,0.2957909,109260.0,109250.0,2.15357478]
[1752077768682,0.28663884,109260.0,109250.0,1.96135511]
[1752077768880,0.19520191,109260.0,109250.0,2.15982147]
[1752077769113,0.19520191,109260.0,109250.0,2.16897462]
[1752077769277,0.19220191,109260.0,109250.0,2.16897462]
[1752077769676,0.19220191,109260.0,109250.0,1.97675511]
[1752077770000,0.19320191,109260.0,109250.0,1.97875511]
[1752077771425,0.1840496,109260.0,109250.0,1.83831511]
[1752077771627,0.1840496,109260.0,109250.0,1.80208511]
[1752077771628,0.64206589,109260.0,109250.0,1.80208511]
[1752077771833,1.01520931,109260.0,109250.0,1.80208511]
[1752077773349,1.35520931,109260.0,109250.0,1.80208511]
[1752077773535,1.36975016,109260.0,109250.0,1.80208511]
[1752077774201,1.39726016,109260.0,109250.0,1.80208511]
[1752077774844,1.43660744,109260.0,109250.0,1.80208511]
[1752077775045,1.52803437,109260.0,109250.0,1.80208511]
[1752077775441,1.52703437,109260.0,109250.0,1.80008511]
[1752077775898,1.43859744,109260.0,109250.0,1.80008511]
[1752077776101,1.21778668,109260.0,109250.0,1.80008511]
[1752077776495,1.22143668,109260.0,109250.0,1.80108511]
[1752077776636,1.57364807,109260.0,109250.0,1.80108511]
[1752077776836,1.57764807,109260.0,109250.0,1.80108511]
[1752077777054,1.669085,109260.0,109250.0,1.80108511]
[1752077777458,1.57764807,109260.0,109250.0,1.80108511]
[1752077780775,1.63408642,109260.0,109250.0,1.38151606]
[1752077782197,1.63406551,109260.0,109250.0,1.38151606]
[1752077783648,0.92815273,109260.0,109250.0,1.38151606]
[1752077783847,1.28036412,109260.0,109250.0,1.38151606]
[1752077784059,1.63257551,109260.0,109250.0,1.38151606]
[1752077784688,1.61717551,109260.0,109250.0,1.38151606]
[1752077785073,1.60263466,109260.0,109250.0,1.38151606]
[1752077785240,1.25042327,109260.0,109250.0,1.38458606]
[1752077785669,0.75757188,109260.0,109250.0,1.38656606]
[1752077785825,0.85888653,109260.0,109250.0,1.40296606]
[1752077786027,1.21109792,109260.0,109250.0,1.40296606]
[1752077786361,1.21109792,109260.0,109250.0,1.39791606]
[1752077786571,1.21109792,109260.0,109250.0,1.38458606]
[1752077787208,1.25039773,109260.0,109250.0,1.38458606]
[1752077787767,1.34183461,109260.0,109250.0,1.38458606]
[1752077788369,1.34183524,109260.0,109250.0,0.78458606]
[1752077789595,1.34183524,109260.0,109250.0,0.78151606]
[1752077791000,0.89818692,109260.0,109250.0,0.78151606]
[1752077791181,1.25039831,109260.0,109250.0,0.78151606]
[1752077791558,0.89818692,109260.0,109250.0,0.78151606]
[1752077791772,1.25039831,109260.0,109250.0,0.78656606]
[1752077791963,1.25039831,109260.0,109250.0,0.80316606]
[1752077792559,1.25039831,109260.0,109250.0,0.78656606]
[1752077792992,0.89818692,109260.0,109250.0,0.78656606]
[1752077793235,1.28190078,109260.0,109250.0,0.78656606]
[1752077794357,1.28190078,109260.0,109250.0,0.78458606]
[1752077794548,1.28190078,109260.0,109250.0,0.78151606]
[1752077795972,1.63411217,109260.0,109250.0,0.78151606]
[1752077796186,1.28190078,109260.0,109250.0,0.78151606]
[1752077796999,1.25039831,109260.0,109250.0,0.78151606]
[1752077798358,1.25039831,109260.0,109250.0,0.18151606]
[1752077800809,1.29151956,109260.0,109250.0,0.18151606]
[1752077802065,1.2915321,109260.0,109250.0,0.18151606]
[1752077802638,1.29153285,109260.0,109250.0,0.18151606]
[1752077804968,1.29153285,109260.0,109250.0,0.28151606]
[1752077806099,1.30838285,109260.0,109250.0,0.28151606]
[1752077806499,1.30673285,109260.0,109250.0,0.28151606]
[1752077806703,1.29153285,109260.0,109250.0,0.28151606]
[1752077816423,1.29153285,109260.0,109250.0,0.28463606]
[1752077817451,1.29153285,109260.0,109250.0,0.30285606]
[1752077818493,1.27497285,109260.0,109250.0,0.30285606]
[1752077819500,0.92071146,109260.0,109250.0,0.30285606]
[1752077819708,0.92071146,109260.0,109250.0,0.31855606]
[1752077820067,0.92071146,109260.0,109250.0,0.30285606]
[1752077820919,0.92071146,109260.0,109250.0,0.31945606]
[1752077821678,0.92071146,109260.0,109250.0,0.30285606]
[1752077821883,0.92071146,109260.0,109250.0,0.31945606]
[1752077822496,0.73931021,109260.0,109250.0,0.45973606]
[1752077822694,0.2514384,109260.0,109250.0,0.9613927]
[1752077822993,0.2514384,109260.0,109250.0,1.14445906]
[1752077823217,0.2239284,109260.0,109250.0,1.15361229]
[1752077823418,0.02630437,109260.0,109250.0,1.17989831]
[1752077823625,0.21450645,109260.0,109250.0,1.17889831]
[1752077824083,0.21750645,109260.0,109250.0,1.17889831]
[1752077824292,0.21450645,109260.0,109250.0,1.17889831]
[1752077824511,0.02230437,109260.0,109250.0,1.09661419]
[1752077824715,0.03145618,109260.0,109250.0,1.10676692]
[1752077824953,0.04060815,109260.0,109250.0,1.10676692]
[1752077825895,0.03660815,109260.0,109250.0,1.10676692]
[1752077827236,0.03860815,109260.0,109250.0,1.10676692]
[1752077827719,0.03660815,109260.0,109250.0,1.10676692]
[1752077828426,0.05125138,109270.0,109260.0,0.29676103]
[1752077828638,0.02745383,109270.0,109260.0,0.66608936]
[1752077829078,0.00915088,109270.0,109260.0,0.66608936]
[1752077829320,0.01830185,109270.0,109260.0,0.66608936]
[1752077829548,0.01830101,109280.0,109270.0,0.29674176]
[1752077829779,0.01830101,109280.0,109270.0,0.94683009]
[1752077830008,0.00915013,109280.0,109270.0,0.94683009]
[1752077830240,0.01830051,109280.0,109270.0,0.94683009]
[1752077830473,0.02745106,109280.0,109270.0,0.94683009]
[1752077830698,0.21961796,109280.0,109270.0,0.94683026]
[1752077830917,0.20431745,109280.0,109270.0,0.73634334]
[1752077831180,0.20431745,109280.0,109270.0,0.57631644]
[1752077831408,0.20231745,109280.0,109270.0,0.29555644]
[1752077831639,0.20231745,109280.0,109270.0,0.78812783]
[1752077833669,0.20431745,109280.0,109270.0,0.78812783]
[1752077834091,0.20431745,109280.0,109270.0,0.43591644]
[1752077834299,0.20431745,109280.0,109270.0,0.59594334]
[1752077834508,0.1951669,109280.0,109270.0,0.59594334]
[1752077835141,0.1951669,109280.0,109270.0,0.03851694]
[1752077835374,0.54737829,109280.0,109270.0,0.17879694]
[1752077835575,0.1951669,109280.0,109270.0,0.17879694]
[1752077836852,0.1951669,109280.0,109270.0,0.17876517]
[1752077839300,0.1860161,109280.0,109270.0,0.74831226]
[1752077839524,0.20431745,109280.0,109270.0,0.80631841]
[1752077839733,0.213468,109280.0,109270.0,0.80631841]
[1752077840178,0.0396022,109280.0,109270.0,0.87456465]
[1752077840614,0.0396022,109280.0,109270.0,0.87460465]
[1752077840615,0.03045082,109280.0,109270.0,0.87460465]
[1752077840793,0.03960145,109280.0,109270.0,0.87460465]
[1752077841460,0.23176827,109280.0,109270.0,0.87460465]
[1752077841670,0.04875217,109280.0,109270.0,0.87460465]
[1752077842088,0.03960145,109280.0,109270.0,0.87460465]
[1752077843178,0.03960137,109280.0,109270.0,0.87460465]
[1752077843387,0.01215005,109280.0,109270.0,0.87460465]
[1752077843911,0.003,109280.0,109270.0,0.87452465]
[1752077844120,0.003,109280.0,109270.0,0.87047385]
[1752077845450,0.01215013,109280.0,109270.0,0.87047385]
[1752077845654,0.02130043,109280.0,109270.0,0.87047033]
[1752077845864,0.01215013,109280.0,109270.0,0.87047033]
[1752077846135,0.02130043,109280.0,109270.0,0.87047033]
[1752077846873,0.03045081,109280.0,109270.0,0.87047033]
[1752077847222,0.03045081,109280.0,109270.0,0.81137514]
[1752077847436,0.02130043,109280.0,109270.0,0.81137514]
[1752077847633,0.003,109280.0,109270.0,0.81137514]
[1752077848071,0.01215005,109280.0,109270.0,0.81137514]
[1752077848494,0.01215005,109280.0,109270.0,0.81137766]
[1752077849140,0.01215005,109280.0,109270.0,0.90281459]
[1752077849339,0.02130026,109280.0,109270.0,0.90281459]
[1752077850419,0.01215005,109280.0,109270.0,0.90281459]
[1752077850600,0.02130018,109280.0,109270.0,0.81137766]
[1752077851152,0.003,109280.0,109270.0,0.81137766]
[1752077851963,0.003,109280.0,109270.0,0.91134104]
[1752077852602,0.002,109280.0,109270.0,0.91134104]
[1752077852786,0.002,109280.0,109270.0,0.91234104]
[1752077853002,0.002,109280.0,109270.0,1.00377797]
[1752077853442,0.31959777,109290.0,109280.0,0.24761775]
[1752077853624,0.31959777,109290.0,109280.0,0.75719331]
[1752077854609,0.31959777,109290.0,109280.0,0.76734352]
[1752077854822,0.32874773,109290.0,109280.0,0.76734352]
[1752077855421,0.31959777,109290.0,109280.0,0.74904301]
[1752077855617,0.31044848,109290.0,109280.0,0.39683162]
[1752077855976,0.31044848,109290.0,109280.0,0.75819348]
[1752077856253,0.12744913,109290.0,109280.0,0.77649416]
[1752077856418,0.12744913,109290.0,109280.0,0.77649357]
[1752077856674,0.31044848,109290.0,109280.0,0.77649357]
[1752077856802,0.31044848,109290.0,109280.0,0.8679305]
[1752077857843,0.31959844,109290.0,109280.0,0.9076353]
[1752077858043,0.31959844,109290.0,109280.0,0.90761233]
[1752077861467,0.31959844,109290.0,109280.0,0.55540094]
[1752077861787,0.31959844,109290.0,109280.0,0.90761233]
[1752077863789,0.12744913,109290.0,109280.0,0.90761233]
[1752077863990,0.12744913,109290.0,109280.0,0.91676254]
[1752077864192,0.12744905,109290.0,109280.0,0.91676254]
[1752077865211,0.12744905,109290.0,109280.0,0.56455115]
[1752077865399,0.12744905,109290.0,109280.0,0.91676254]
[1752077866201,0.12744905,109290.0,109280.0,0.91674854]
[1752077866619,0.31959828,109290.0,109280.0,0.7906111]
[1752077866832,0.31959828,109290.0,109280.0,0.78146072]
[1752077867035,0.29214923,109290.0,109280.0,0.5800636]
[1752077867601,0.30874923,109290.0,109280.0,0.7630797]
[1752077867858,0.30874923,109290.0,109280.0,0.77223042]
[1752077868054,0.30874923,109290.0,109280.0,0.7630797]
[1752077868267,0.29959935,109290.0,109280.0,0.7630797]
[1752077868692,0.29959935,109290.0,109280.0,0.86366743]
[1752077868902,0.29959935,109290.0,109280.0,0.87281815]
[1752077869190,0.28299935,109290.0,109280.0,0.86492158]
[1752077869395,0.28299935,109290.0,109280.0,0.89112711]
[1752077869597,0.28299935,109290.0,109280.0,0.52186074]
[1752077869792,0.28299935,109290.0,109280.0,0.8911291]
[1752077870274,0.28299935,109290.0,109280.0,0.87282792]
[1752077871167,0.28299935,109290.0,109280.0,0.88197847]
[1752077871399,0.28505935,109290.0,109280.0,0.01805697]
[1752077871637,0.90408767,109290.0,109280.0,0.01805697]
[1752077871891,1.24408767,109290.0,109280.0,0.001]
[1752077872116,1.24408767,109290.0,109250.0,0.28051606]
[1752077872117,0.22219397,109260.0,109250.0,0.28051606]
[1752077872334,0.23799397,109260.0,109250.0,0.28051606]
[1752077872555,0.23799397,109260.0,109250.0,0.42079606]
[1752077872990,0.25008942,109260.0,109250.0,0.42079606]
[1752077873206,0.22219397,109260.0,109250.0,0.51223299]
[1752077873422,0.22219397,109260.0,109250.0,0.37195299]
[1752077873630,0.22219397,109260.0,109250.0,0.51223299]
[1752077873843,0.22219397,109260.0,109250.0,0.42079606]
[1752077874711,0.21050636,109260.0,109250.0,0.77819745]
[1752077874928,0.2013543,109260.0,109250.0,0.77819745]
[1752077875355,0.2013543,109260.0,109250.0,0.77823745]
[1752077875598,0.2013543,109260.0,109250.0,0.42602606]
[1752077875806,0.2013543,109260.0,109250.0,0.77823745]
[1752077876946,0.22825694,109260.0,109250.0,0.77823745]
[1752077879339,0.22825694,109260.0,109250.0,0.96130381]
[1752077880502,0.22825694,109260.0,109250.0,0.77823745]
[1752077882574,0.22825694,109260.0,109250.0,0.42602606]
[1752077882804,0.22825694,109260.0,109250.0,0.77823745]
[1752077883266,0.24561694,109260.0,109250.0,0.42602606]
[1752077883709,0.24561694,109260.0,109250.0,0.60909242]
[1752077884787,0.23031694,109260.0,109250.0,0.60909242]
[1752077884996,0.23031694,109260.0,109250.0,0.62469242]
[1752077885185,0.22825694,109260.0,109250.0,1.04406519]
[1752077885537,0.22825694,109260.0,109250.0,1.05321817]
[1752077885753,0.2013543,109260.0,109250.0,1.05321817]
[1752077885972,0.2013543,109260.0,109250.0,1.03491213]
[1752077886387,0.2013543,109260.0,109250.0,1.05321817]
[1752077887511,0.19220208,109260.0,109250.0,1.04406528]
[1752077887670,0.20135413,109260.0,109250.0,1.06851826]
[1752077888341,0.20135413,109260.0,109250.0,1.16910808]
[1752077888504,0.20135413,109260.0,109250.0,1.07767115]
[1752077888747,0.21050652,109260.0,109250.0,1.06851826]
[1752077889369,0.21050652,109260.0,109250.0,1.07767107]
[1752077889846,0.219659,109260.0,109250.0,1.07767107]
[1752077891029,0.21050678,109260.0,109250.0,1.06851826]
[1752077891459,0.21050678,109260.0,109250.0,1.05321826]
[1752077891617,0.21050678,109260.0,109250.0,1.06237115]
[1752077892256,0.20135447,109260.0,109250.0,1.05321826]
[1752077894475,0.20135447,109260.0,109250.0,1.04406528]
[1752077895123,0.20135447,109260.0,109250.0,0.70100687]
[1752077895246,0.20135447,109260.0,109250.0,1.06237115]
[1752077895448,0.20135447,109260.0,109250.0,1.07797115]
[1752077896975,0.20135447,109260.0,109250.0,1.05936528]
[1752077897179,0.19220208,109260.0,109250.0,1.04376528]
[1752077897392,0.19220208,109260.0,109250.0,1.05291834]
[1752077898296,0.00915222,109260.0,109250.0,1.05291834]
[1752077898512,0.19218432,109270.0,109260.0,0.27030898]
[1752077898735,0.21963815,109270.0,109260.0,0.78853234]
[1752077898940,0.02745366,109270.0,109260.0,0.79768423]
[1752077899588,0.00915097,109270.0,109260.0,0.79768423]
[1752077899808,0.03660479,109270.0,109260.0,0.79768423]
[1752077901068,0.22878986,109270.0,109260.0,0.78853234]
[1752077901913,0.22878986,109270.0,109260.0,0.79768423]
[1752077902982,0.21048751,109270.0,109260.0,0.744496]
[1752077903160,0.20133604,109270.0,109260.0,0.76280087]
[1752077903407,0.20133604,109270.0,109260.0,0.77195318]
[1752077903842,0.20133604,109270.0,109260.0,0.7811054]
[1752077904046,0.20133604,109270.0,109260.0,0.88169388]
[1752077904261,0.2108163,109280.0,109270.0,0.18303285]
[1752077904467,0.2108163,109280.0,109270.0,0.32331285]
[1752077904673,0.2108163,109280.0,109270.0,0.14028]
[1752077904894,0.2108163,109280.0,109270.0,0.3375644]
[1752077905118,0.2102163,109280.0,109270.0,0.16078]
[1752077905326,0.2102163,109280.0,109270.0,0.14233]
[1752077905536,0.2122163,109280.0,109270.0,0.14233]
[1752077906162,0.2132163,109280.0,109270.0,0.14233]
[1752077907372,0.2132163,109280.0,109270.0,0.33451449]
[1752077909070,0.20434685,109280.0,109270.0,0.78277392]
[1752077909275,0.20434685,109280.0,109270.0,0.79192514]
[1752077909917,0.20434685,109280.0,109270.0,0.73282995]
[1752077910125,0.20434685,109280.0,109270.0,0.3897697]
[1752077910343,0.20434685,109280.0,109270.0,0.74198109]
[1752077910776,0.20434685,109280.0,109270.0,0.73282995]
[1752077912736,0.20434685,109280.0,109270.0,0.74198109]
[1752077912952,0.20434685,109280.0,109270.0,0.72367873]
[1752077913616,0.20434685,109280.0,109270.0,0.73282995]
[1752077914067,0.20434685,109280.0,109270.0,0.38061856]
[1752077914284,0.20234685,109280.0,109270.0,0.73282995]
[1752077914496,0.20231745,109280.0,109270.0,0.741981]
[1752077914679,0.20231745,109280.0,109270.0,0.83341793]
[1752077915151,0.20131745,109280.0,109270.0,0.83341793]
[1752077915773,0.01830085,109280.0,109270.0,0.83341793]
[1752077915991,0.03660153,109280.0,109270.0,0.83341793]
[1752077916208,0.02745073,109280.0,109270.0,0.89787294]
[1752077916413,0.0366012,109280.0,109270.0,0.89787294]
[1752077916635,0.04575183,109280.0,109270.0,0.54566155]
[1752077916823,0.04575183,109280.0,109270.0,0.89787294]
[1752077917951,0.04575183,109280.0,109270.0,0.88227294]
[1752077918184,0.0366012,109280.0,109270.0,0.88227294]
[1752077918401,0.69590711,109290.0,109280.0,0.26461268]
[1752077918619,0.69590711,109290.0,109280.0,0.75706407]
[1752077918837,0.67808711,109290.0,109280.0,0.78161437]
[1752077919048,0.67808711,109290.0,109280.0,0.79076458]
[1752077919492,0.11829883,109290.0,109280.0,0.84985977]
[1752077919702,0.12744863,109290.0,109280.0,0.84985977]
[1752077919915,0.13044863,109290.0,109280.0,0.79076458]
[1752077920125,0.32259794,109290.0,109280.0,0.79076458]
[1752077920337,0.13044863,109290.0,109280.0,0.79076458]
[1752077920985,0.13044846,109290.0,109280.0,0.79076458]
[1752077921208,0.13044838,109290.0,109280.0,0.79076458]
[1752077921478,0.12129875,109290.0,109280.0,0.79076458]
[1752077921676,0.139598,109290.0,109280.0,0.79076458]
[1752077922333,0.139598,109290.0,109280.0,0.43855319]
[1752077922601,0.139598,109290.0,109280.0,0.79076458]
[1752077922817,0.139598,109290.0,109280.0,0.7998167]
[1752077923467,0.103,109290.0,109280.0,0.90745363]
[1752077923682,0.11214929,109290.0,109280.0,0.90745363]
[1752077923901,0.103,109290.0,109280.0,0.90745363]
[1752077924120,0.11214929,109290.0,109280.0,0.90745363]
[1752077924358,0.102,109290.0,109280.0,0.90745363]
[1752077924574,0.1,109290.0,109280.0,0.8160167]
[1752077924792,0.1,109290.0,109280.0,0.90745363]
[1752077925677,0.1,109290.0,109280.0,1.25966502]
[1752077925893,0.1,109290.0,109280.0,0.90745363]
[1752077926572,0.1,109290.0,109280.0,0.99889056]
[1752077927277,0.1,109290.0,109280.0,1.35110195]
[1752077928125,0.1,109290.0,109280.0,1.50110195]
[1752077928559,0.1,109290.0,109280.0,1.84110195]
[1752077928780,0.1,109290.0,109280.0,1.94106533]
[1752077928992,0.1,109290.0,109280.0,1.96855333]
[1752077930623,0.1,109290.0,109280.0,2.13409418]
[1752077931079,0.1,109290.0,109280.0,2.13609418]
[1752077931428,0.1,109290.0,109280.0,2.13509418]
[1752077932030,0.1,109290.0,109280.0,2.13809418]
[1752077932205,0.101,109290.0,109280.0,2.14609418]
[1752077934388,0.101,109290.0,109280.0,2.44349418]
[1752077937986,0.101,109290.0,109280.0,1.7390714]
[1752077938141,0.101,109290.0,109280.0,2.44349418]
[1752077945757,0.101,109290.0,109280.0,2.66325418]
[1752077945964,0.101,109290.0,109280.0,4.71163118]
[1752077946153,0.101,109290.0,109280.0,4.41423118]
[1752077952038,0.101,109290.0,109280.0,4.71163118]
[1752077952373,0.101,109290.0,109280.0,4.82122874]
[1752077953235,0.101,109290.0,109280.0,4.11680596]
[1752077953446,0.101,109290.0,109280.0,4.82122874]
[1752077954320,1e-08,109290.0,109280.0,4.71163118]
[1752077957145,1e-08,109300.0,109290.0,4.67432525]
[1752077957362,1e-08,109300.0,109290.0,5.52792892]
[1752077957562,1e-08,109300.0,109290.0,5.48309092]
[1752077957788,0.0002,109310.0,109300.0,0.71694983]
[1752077957982,0.0002,109310.0,109300.0,4.56695093]
[1752077958218,1e-08,109310.0,109300.0,4.65838786]
[1752077958446,1e-08,109310.0,109300.0,4.68398786]
[1752077958862,1e-08,109310.0,109300.0,4.98638786]
[1752077959028,1e-08,109310.0,109300.0,4.28196508]
[1752077959246,1e-08,109320.0,109310.0,4.53604574]
[1752077959588,1e-08,109320.0,109310.0,4.87197724]
[1752077959792,0.0102,109330.0,109320.0,1.68709235]
[1752077959930,0.0102,109330.0,109320.0,1.92663766]
[1752077960133,0.0102,109330.0,109320.0,1.97549267]
[1752077960339,0.0102,109330.0,109320.0,2.67991545]
[1752077960613,0.0102,109330.0,109320.0,2.0669296]
[1752077960786,0.0102,109330.0,109320.0,2.77135238]
[1752077961358,0.0102,109330.0,109320.0,2.78715238]
[1752077962421,0.01024645,109330.0,109320.0,2.78715238]
[1752077962652,0.01024645,109330.0,109320.0,2.49720238]
[1752077963441,0.01024645,109330.0,109320.0,1.7927796]
[1752077963773,0.01024645,109330.0,109320.0,2.49720238]
[1752077964596,0.01024645,109330.0,109320.0,2.52524413]
[1752077964809,0.01324645,109330.0,109320.0,2.52524413]
[1752077965023,0.01324645,109330.0,109320.0,2.36774413]
[1752077965237,0.01324645,109330.0,109320.0,2.38799613]
[1752077965649,0.01324645,109330.0,109320.0,2.40449613]
[1752077966688,0.01324645,109330.0,109320.0,1.70007335]
[1752077966965,0.01324645,109330.0,109320.0,2.40449613]
[1752077969816,0.01324645,109330.0,109320.0,2.70189613]
[1752077970423,1e-08,109330.0,109320.0,2.40449613]
[1752077971485,1e-08,109330.0,109320.0,1.70007335]
[1752077971696,1e-08,109330.0,109320.0,2.40649613]
[1752077972365,4e-05,109340.0,109330.0,0.58576209]
[1752077972551,4e-05,109340.0,109330.0,1.47086898]
[1752077973355,4e-05,109340.0,109330.0,1.45506898]
[1752077973552,4e-05,109340.0,109330.0,1.45806898]
[1752077973759,4e-05,109340.0,109330.0,1.47466898]
[1752077974498,0.01654,109340.0,109330.0,1.47466898]
[1752077975051,4e-05,109340.0,109330.0,1.47466898]
[1752077976495,0.01614,109340.0,109330.0,1.50214198]
[1752077976960,0.01614,109340.0,109330.0,1.48554198]
[1752077977339,0.01709,109340.0,109330.0,1.48554198]
[1752077978305,0.01709,109340.0,109330.0,1.53439699]
[1752077979138,0.01709,109340.0,109330.0,1.51985614]
[1752077980631,0.01709,109340.0,109330.0,1.37340614]
[1752077981201,0.01709,109340.0,109330.0,1.37553614]
[1752077982124,0.01709,109340.0,109330.0,1.37875614]
[1752077984188,0.01709,109340.0,109330.0,1.35128314]
[1752077985429,0.01709,109340.0,109330.0,1.34798314]
[1752077985634,0.01709,109340.0,109330.0,0.99577175]
[1752077985846,0.07173111,109340.0,109330.0,0.50357572]
[1752077986047,0.07173111,109340.0,109330.0,1.00581314]
[1752077986478,0.08087681,109340.0,109330.0,1.00581314]
[1752077986675,0.26379248,109340.0,109330.0,1.00581314]
[1752077986895,0.08087681,109340.0,109330.0,1.00581314]
[1752077987092,0.08087681,109340.0,109330.0,0.65360175]
[1752077987296,0.07173103,109340.0,109330.0,1.00581314]
[1752077987592,0.07173094,109340.0,109330.0,1.00581314]
[1752077987804,0.07173094,109340.0,109330.0,0.44448053]
[1752077987805,0.26379297,109340.0,109330.0,0.44448053]
[1752077988007,0.2455025,109340.0,109330.0,0.35304377]
[1752077988242,0.22721145,109340.0,109330.0,0.15181839]
[1752077988459,0.22721145,109340.0,109330.0,0.29281839]
[1752077989078,0.22721145,109340.0,109330.0,0.47575079]
[1752077989289,0.22721145,109340.0,109330.0,0.15181839]
[1752077989290,0.57942284,109340.0,109330.0,0.15181839]
[1752077989518,0.57942284,109340.0,109330.0,0.29281839]
[1752077990327,0.57942284,109340.0,109330.0,0.29181839]
[1752077990690,0.22721145,109340.0,109330.0,0.48389732]
[1752077990924,0.22721145,109340.0,109330.0,0.54509397]
[1752077991096,0.22721145,109340.0,109330.0,0.20286859]
[1752077991313,0.22721145,109340.0,109330.0,0.09996338]
[1752077991314,0.67085977,109340.0,109330.0,0.09996338]
[1752077991536,0.2473105,109320.0,109310.0,0.04885501]
[1752077991759,0.59037502,109320.0,109310.0,0.28986484]
[1752077991982,0.23816363,109320.0,109310.0,0.33183071]
[1752077992188,0.59037502,109320.0,109310.0,0.48197892]
[1752077992401,0.5812279,109320.0,109310.0,0.47283071]
[1752077992612,0.5812279,109320.0,109310.0,0.48197892]
[1752077993261,0.22901651,109320.0,109310.0,0.48197892]
[1752077993496,0.03692,109320.0,109310.0,0.48197892]
[1752077993715,0.06436127,109320.0,109310.0,0.50027457]
[1752077994155,0.06436127,109320.0,109310.0,0.5917115]
[1752077994356,0.0460667,109320.0,109310.0,0.5917115]
[1752077994556,0.04606678,109320.0,109310.0,0.5917115]
[1752077994759,0.03692,109320.0,109310.0,0.94392289]
[1752077995203,0.03692,109320.0,109310.0,0.80292289]
[1752077995342,0.03692,109320.0,109310.0,0.94388289]
[1752077995546,0.01826,109320.0,109310.0,1.03744982]
[1752077995848,0.01826,109320.0,109310.0,1.04066982]
[1752077996067,0.0162,109320.0,109310.0,1.19066982]
[1752077996210,0.01836,109330.0,109320.0,0.26459551]
[1752077996420,0.01836,109330.0,109320.0,0.76733902]
[1752077997846,0.01936,109330.0,109320.0,0.76733902]
[1752077998493,0.01936,109330.0,109320.0,0.90825902]
[1752077999418,0.01936,109330.0,109320.0,0.90503902]
[1752078001244,0.01936,109330.0,109320.0,0.55069763]
[1752078001449,0.03765197,109330.0,109320.0,0.90290902]
[1752078001672,0.03865197,109330.0,109320.0,0.90290902]
[1752078002311,0.03865189,109330.0,109320.0,0.90290902]
[1752078002641,0.04779809,109330.0,109320.0,0.55069763]
[1752078002837,0.07540454,109330.0,109320.0,0.81147209]
[1752078003251,0.08455107,109330.0,109320.0,0.81147209]
[1752078003474,0.08455107,109330.0,109320.0,0.4592607]
[1752078003738,0.26748347,109330.0,109320.0,0.4592607]
[1752078005283,0.26748347,109330.0,109320.0,0.45926078]
[1752078005978,0.08455107,109330.0,109320.0,0.46840765]
[1752078006165,0.07540454,109330.0,109320.0,0.46840765]
[1752078006391,0.08455107,109330.0,109320.0,0.46840765]
[1752078006581,0.26748347,109330.0,109320.0,0.30919383]
[1752078006732,0.02036,109330.0,109320.0,0.81678209]
[1752078006945,0.02036,109330.0,109320.0,0.90821902]
[1752078007146,0.02950586,109330.0,109320.0,0.55600763]
[1752078007344,0.02950586,109330.0,109320.0,0.90821902]
[1752078007935,0.03865189,109330.0,109320.0,0.90499902]
[1752078008136,0.03865189,109330.0,109320.0,0.55278763]
[1752078008362,0.03865189,109330.0,109320.0,0.90499902]
[1752078008582,0.047798,109330.0,109320.0,0.90499902]
[1752078008950,0.02950586,109330.0,109320.0,0.90499902]
[1752078009330,0.03865181,109330.0,109320.0,0.90499902]
[1752078009543,0.04779792,109330.0,109320.0,0.90499902]
[1752078009766,0.04779784,109330.0,109320.0,0.90499902]
[1752078009971,0.05694404,109330.0,109320.0,0.90499902]
[1752078010415,0.04779784,109330.0,109320.0,0.90499902]
[1752078010624,0.08517074,109330.0,109320.0,0.55053763]
[1752078011685,0.07602429,109330.0,109320.0,0.55053763]
[1752078011893,0.26810355,109330.0,109320.0,0.55968458]
[1752078012097,0.08517107,109330.0,109320.0,0.55968458]
[1752078012508,0.03944,109330.0,109320.0,0.55968458]
[1752078012667,0.05773215,109330.0,109320.0,0.91189597]
[1752078013083,0.04858595,109330.0,109320.0,0.91189597]
[1752078013279,0.03258595,109330.0,109320.0,0.91189597]
[1752078013696,0.04173223,109330.0,109320.0,0.91189597]
[1752078013913,0.04173206,109330.0,109320.0,0.91189597]
[1752078014113,0.04786834,109330.0,109320.0,0.91189597]
[1752078014314,0.03872206,109330.0,109320.0,0.91189597]
[1752078014536,0.03872198,109330.0,109320.0,0.91402597]
[1752078015199,0.04786818,109330.0,109320.0,0.91402597]
[1752078015405,0.03872198,109330.0,109320.0,0.91402597]
[1752078015813,0.03872198,109330.0,109320.0,0.91727597]
[1752078016227,0.04786818,109330.0,109320.0,0.91727597]
[1752078016435,0.03872198,109330.0,109320.0,0.91727597]
[1752078016662,0.0183,109330.0,109320.0,0.42430458]
[1752078016868,0.002,109330.0,109320.0,1.28554736]
[1752078017293,0.002,109330.0,109320.0,0.93333597]
[1752078019148,0.002,109330.0,109320.0,1.64194736]
[1752078019577,0.002,109330.0,109320.0,1.74191074]
[1752078019788,0.002,109330.0,109320.0,1.73691074]
[1752078020197,4e-05,109340.0,109330.0,0.21037124]